bitfinex/quotes_SOLUSD_20230102
["timestamp","ask_amount","ask_price","bid_price","bid_amount"]
[1672665938749,97.28,11.163,11.153,48.1264]
[1672665939601,30.0,11.163,11.153,63.93370786]
[1672665939920,30.0,11.163,11.154,67.33]
[1672665941475,97.28,11.163,11.154,67.33]
[1672665941690,30.0,11.163,11.153,115.4664]
[1672665944945,97.27,11.164,11.153,115.4664]
[1672665945158,30.0,11.164,11.153,115.4664]
[1672665946095,30.0,11.164,11.153,48.1264]
[1672665946518,30.0,11.162,11.153,48.1264]
[1672665949787,6.8,11.16,11.148,67.37]
[1672665950000,87.3,11.159,11.146,187.9378]
[1672665950210,202.8009,11.159,11.147,67.38]
[1672665950535,30.0,11.158,11.147,67.38]
[1672665950718,30.0,11.156,11.147,113.185]
[1672665955553,115.5009,11.157,11.147,113.185]
[1672665955768,30.0,11.156,11.147,113.185]
[1672665961456,115.5009,11.157,11.147,113.185]
[1672665961872,30.0,11.156,11.147,113.185]
[1672665962842,115.5009,11.157,11.147,128.99230786]
[1672665963035,115.5009,11.157,11.147,113.185]
[1672665963974,30.0,11.156,11.147,113.185]
[1672665969666,115.5009,11.157,11.147,113.185]
[1672665970922,115.5009,11.157,11.148,15.80730786]
[1672665971142,30.0,11.167,11.15,30.0]
[1672665971359,30.0,11.164,11.151,232.091]
[1672665971549,30.0,11.164,11.151,67.35]
[1672665971871,67.28,11.163,11.15,30.0]
[1672665972084,30.0,11.163,11.151,87.35]
[1672665972400,30.0,11.161,11.151,87.35]
[1672665972598,30.0,11.161,11.152,24.501]
[1672665972927,30.0,11.161,11.147,23.1304]
[1672665972928,30.0,11.159,11.147,90.5104]
[1672665973131,30.0,11.157,11.147,23.1304]
[1672665973343,30.0,11.157,11.147,47.6314]
[1672665973966,180.3536,11.158,11.148,45.80730786]
[1672665974172,113.0436,11.158,11.148,113.17730786]
[1672665974379,113.0436,11.158,11.149,17.0]
[1672665974592,113.0436,11.158,11.15,67.36]
[1672665974814,113.0436,11.158,11.148,67.37]
[1672665975664,113.0436,11.158,11.148,83.17730786]
[1672665975975,30.0,11.157,11.148,67.37]
[1672665976287,113.0436,11.158,11.148,67.37]
[1672665976503,67.3,11.16,11.149,50.0]
[1672665976813,67.3,11.16,11.15,67.36]
[1672665977027,67.3,11.16,11.151,20.0]
[1672665977211,30.0,11.161,11.151,20.0]
[1672665977424,30.0,11.161,11.151,42.5369]
[1672665977635,30.0,11.159,11.151,42.5369]
[1672665977845,17.0,11.158,11.151,42.5369]
[1672665978166,67.29,11.162,11.152,30.0]
[1672665978382,97.28,11.163,11.152,89.8869]
[1672665978596,97.28,11.163,11.152,22.5369]
[1672665979216,97.28,11.163,11.153,22.5369]
[1672665979966,17.0,11.162,11.153,22.5369]
[1672665981871,30.0,11.16,11.153,22.5369]
[1672665982489,97.3,11.16,11.153,22.5369]
[1672665985115,30.0,11.16,11.149,67.37]
[1672665985320,30.0,11.158,11.146,115.7222]
[1672665985530,30.0,11.158,11.147,30.0]
[1672665985745,30.0,11.158,11.148,67.37]
[1672665985968,30.0,11.158,11.147,97.38]
[1672665986160,146.9053,11.158,11.147,90.8994]
[1672665986376,30.0,11.156,11.147,23.5194]
[1672665990800,17.0,11.155,11.147,23.5194]
[1672665992066,30.0,11.156,11.147,23.5194]
[1672665992392,139.4186,11.157,11.148,67.37]
[1672665994589,30.0,11.156,11.147,23.5194]
[1672665997000,206.7386,11.157,11.147,23.5194]
[1672665997331,139.4186,11.157,11.147,23.5194]
[1672665997758,30.0,11.156,11.147,23.5194]
[1672665998155,97.32,11.156,11.147,23.5194]
[1672666016560,139.4186,11.157,11.149,30.0]
[1672666016983,139.4186,11.157,11.148,67.37]
[1672666017930,30.0,11.156,11.147,90.8994]
[1672666018147,30.0,11.156,11.147,23.5194]
[1672666018551,30.0,11.154,11.147,23.5194]
[1672666019827,30.0,11.152,11.147,23.5194]
[1672666020773,30.0,11.154,11.147,23.5194]
[1672666020976,30.0,11.152,11.147,23.5194]
[1672666023088,97.33,11.154,11.147,23.5194]
[1672666027191,114.245,11.155,11.147,90.8994]
[1672666027391,114.245,11.155,11.148,30.0]
[1672666027592,114.245,11.155,11.149,67.37]
[1672666027804,114.245,11.155,11.148,97.37]
[1672666028135,114.245,11.155,11.147,90.8994]
[1672666028323,114.245,11.155,11.147,23.5194]
[1672666032132,114.245,11.155,11.147,39.32670786]
[1672666032447,114.245,11.155,11.147,90.8994]
[1672666032650,114.245,11.155,11.147,23.5194]
[1672666033480,17.0,11.154,11.147,23.5194]
[1672666034335,47.0,11.154,11.147,23.5194]
[1672666035604,17.0,11.154,11.147,23.5194]
[1672666036744,47.0,11.154,11.147,23.5194]
[1672666037271,17.0,11.154,11.147,23.5194]
[1672666037701,84.33,11.154,11.147,23.5194]
[1672666038761,114.245,11.155,11.149,30.0]
[1672666038970,114.245,11.155,11.149,97.37]
[1672666039155,114.245,11.155,11.149,113.17730786]
[1672666039368,114.245,11.155,11.149,45.80730786]
[1672666039597,114.245,11.155,11.149,15.80730786]
[1672666040650,114.245,11.155,11.148,67.37]
[1672666040865,114.245,11.155,11.147,90.8994]
[1672666041262,114.245,11.155,11.147,23.5194]
[1672666047696,67.33,11.154,11.147,23.5194]
[1672666048860,114.245,11.155,11.147,39.32670786]
[1672666049176,67.27,11.164,11.149,30.0]
[1672666049391,232.9533,11.167,11.15,87.36]
[1672666049601,30.0,11.166,11.151,30.0]
[1672666049911,30.0,11.164,11.152,20.0]
[1672666050115,67.28,11.163,11.152,180.0775]
[1672666050320,30.0,11.162,11.153,23.8365]
[1672666050519,67.29,11.161,11.153,23.8365]
[1672666050730,30.0,11.16,11.153,23.8365]
[1672666050942,30.0,11.158,11.153,23.8365]
[1672666052206,17.0,11.157,11.153,23.8365]
[1672666054116,30.0,11.155,11.153,23.8365]
[1672666054315,67.33,11.154,11.145,115.8972]
[1672666054526,30.0,11.153,11.146,30.0]
[1672666054727,30.0,11.153,11.145,139.4699]
[1672666054937,30.0,11.153,11.145,23.5727]
[1672666055782,67.33,11.154,11.145,23.5727]
[1672666056426,30.0,11.153,11.145,23.5727]
[1672666060318,67.33,11.154,11.145,23.5727]
[1672666060651,143.8304,11.155,11.147,30.0]
[1672666060851,143.8304,11.155,11.148,67.37]
[1672666061180,143.8304,11.155,11.147,113.18730786]
[1672666063177,143.8304,11.155,11.147,83.18730786]
[1672666063577,143.8304,11.155,11.148,30.0]
[1672666064100,143.8304,11.155,11.15,30.0]
[1672666064310,23.2795,11.156,11.149,83.17730786]
[1672666064522,23.2795,11.156,11.148,67.37]
[1672666064945,23.2795,11.156,11.147,89.9182]
[1672666065370,23.2795,11.156,11.147,22.5382]
[1672666065900,67.33,11.155,11.147,22.5382]
[1672666066101,30.0,11.155,11.147,22.5382]
[1672666067165,90.5995,11.156,11.147,22.5382]
[1672666068134,30.0,11.155,11.147,22.5382]
[1672666069502,23.2795,11.156,11.148,113.17730786]
[1672666070018,23.2795,11.156,11.149,15.80730786]
[1672666071283,23.2795,11.156,11.148,67.37]
[1672666072207,23.2795,11.156,11.148,83.17730786]
[1672666074864,23.2795,11.156,11.148,67.37]
[1672666075050,23.2795,11.156,11.147,22.5382]
[1672666075259,90.5995,11.156,11.147,22.5382]
[1672666075898,30.0,11.155,11.147,22.5382]
[1672666081788,67.33,11.154,11.147,22.5382]
[1672666082008,30.0,11.153,11.147,22.5382]
[1672666082320,30.0,11.151,11.137,67.44]
[1672666082529,87.36,11.15,11.133,180.5848]
[1672666082749,251.9528,11.15,11.134,32.38852786]
[1672666082951,251.9528,11.15,11.135,67.45]
[1672666083150,30.0,11.149,11.135,83.25730786]
[1672666083361,67.37,11.148,11.136,15.80730786]
[1672666083570,67.37,11.148,11.136,45.80730786]
[1672666083571,30.0,11.147,11.136,45.80730786]
[1672666083782,170.9205,11.147,11.136,45.80730786]
[1672666084859,170.9205,11.147,11.137,32.80730786]
[1672666085581,67.38,11.146,11.137,15.80730786]
[1672666085893,67.38,11.146,11.136,30.0]
[1672666086091,91.6154,11.146,11.136,45.80730786]
[1672666087039,91.6154,11.146,11.137,30.0]
[1672666087369,91.6154,11.146,11.136,30.0]
[1672666087599,30.0,11.145,11.136,54.0009]
[1672666087774,67.4,11.144,11.136,54.0009]
[1672666087986,30.0,11.143,11.136,54.0009]
[1672666088750,67.4,11.144,11.136,54.0009]
[1672666089155,67.4,11.144,11.136,24.0009]
[1672666090959,136.1222,11.145,11.136,91.4409]
[1672666091168,136.1222,11.145,11.136,107.24820786]
[1672666091377,136.1222,11.145,11.136,91.4409]
[1672666092541,136.1222,11.145,11.137,30.0]
[1672666093378,136.1222,11.145,11.136,24.0009]
[1672666093694,30.0,11.143,11.136,24.0009]
[1672666094092,136.1222,11.145,11.137,30.0]
[1672666094316,113.4062,11.145,11.139,30.0]
[1672666094526,47.2327,11.155,11.141,30.0]
[1672666094733,164.6956,11.155,11.142,116.8373]
[1672666095065,30.0,11.153,11.143,30.0]
[1672666095276,30.0,11.153,11.144,67.4]
[1672666095486,184.7929,11.154,11.143,162.63460786]
[1672666095673,47.0,11.153,11.144,17.0]
[1672666096633,47.0,11.153,11.144,32.80730786]
[1672666096836,184.7929,11.154,11.144,32.80730786]
[1672666097047,184.7929,11.154,11.145,30.0]
[1672666097369,117.4629,11.154,11.145,97.39]
[1672666098631,117.4629,11.154,11.145,113.19730786]
[1672666098843,117.4629,11.154,11.145,97.39]
[1672666099774,117.4629,11.154,11.145,30.0]
[1672666101896,67.34,11.153,11.145,30.0]
[1672666103993,36.93,11.16,11.145,30.0]
[1672666103994,30.0,11.169,11.147,30.0]
[1672666104209,155.3957,11.164,11.148,128.6668]
[1672666104519,30.0,11.163,11.148,67.37]
[1672666104840,30.0,11.161,11.147,67.38]
[1672666105053,87.3,11.16,11.145,15.80730786]
[1672666105362,30.0,11.159,11.146,97.38]
[1672666105566,30.0,11.157,11.146,30.0]
[1672666105769,67.32,11.156,11.146,30.0]
[1672666106199,30.0,11.155,11.145,22.822]
[1672666106622,30.0,11.153,11.145,22.822]
[1672666106824,67.35,11.152,11.145,22.822]
[1672666107036,30.0,11.151,11.145,22.822]
[1672666107474,67.36,11.15,11.145,22.822]
[1672666107876,67.36,11.15,11.144,24.9409]
[1672666108509,67.36,11.15,11.141,22.7652]
[1672666108709,67.36,11.15,11.142,20.0]
[1672666108916,67.36,11.15,11.143,30.0]
[1672666109131,67.35,11.152,11.143,30.0]
[1672666109342,161.8864,11.154,11.144,83.20730786]
[1672666109552,161.8864,11.154,11.145,30.0]
[1672666109770,161.8864,11.154,11.147,30.0]
[1672666109989,161.8864,11.154,11.149,30.0]
[1672666109990,113.7661,11.154,11.149,30.0]
[1672666110191,44.3787,11.158,11.149,30.0]
[1672666110509,20.0,11.158,11.15,15.80730786]
[1672666110712,87.29,11.161,11.15,15.80730786]
[1672666110922,30.0,11.16,11.15,15.80730786]
[1672666111131,67.3,11.159,11.15,15.80730786]
[1672666111560,50.0,11.158,11.15,15.80730786]
[1672666111881,30.0,11.156,11.146,52.83]
[1672666112072,67.33,11.155,11.146,52.83]
[1672666112282,30.0,11.154,11.146,52.83]
[1672666112504,67.34,11.153,11.146,52.83]
[1672666112712,30.0,11.152,11.146,22.83]
[1672666113243,67.34,11.153,11.146,22.83]
[1672666113565,23.5807,11.154,11.148,30.0]
[1672666113786,23.5807,11.154,11.15,30.0]
[1672666113986,23.6529,11.155,11.15,30.0]
[1672666114301,23.6529,11.155,11.149,83.17730786]
[1672666114701,23.6529,11.155,11.149,67.37]
[1672666115036,23.6529,11.155,11.149,30.0]
[1672666115355,23.6529,11.155,11.148,15.80730786]
[1672666115767,23.6529,11.155,11.15,30.0]
[1672666116074,118.2525,11.156,11.148,15.80730786]
[1672666116274,118.2525,11.156,11.149,17.0]
[1672666116714,118.2525,11.156,11.149,32.80730786]
[1672666117330,118.2525,11.156,11.149,15.80730786]
[1672666117541,118.2525,11.156,11.147,97.38]
[1672666117875,118.2525,11.156,11.147,83.18730786]
[1672666120801,118.2525,11.156,11.148,17.0]
[1672666123129,118.2525,11.156,11.147,17.0]
[1672666123318,118.2525,11.156,11.148,45.80730786]
[1672666123319,143.0624,11.156,11.148,45.80730786]
[1672666123738,210.3824,11.156,11.148,30.0]
[1672666124494,30.0,11.155,11.148,30.0]
[1672666124703,67.33,11.154,11.148,30.0]
[1672666124919,67.33,11.154,11.146,22.83]
[1672666125116,67.33,11.154,11.147,30.0]
[1672666126063,67.33,11.154,11.146,22.83]
[1672666126478,91.3697,11.155,11.147,17.0]
[1672666127007,91.3697,11.155,11.146,22.83]
[1672666127230,30.0,11.154,11.146,22.83]
[1672666128381,91.3697,11.155,11.146,22.83]
[1672666128998,91.3697,11.155,11.147,17.0]
[1672666131313,91.3697,11.155,11.146,22.83]
[1672666131526,91.3697,11.155,11.147,30.0]
[1672666132040,91.3697,11.155,11.146,22.83]
[1672666133841,30.0,11.154,11.146,22.83]
[1672666134051,67.34,11.153,11.146,22.83]
[1672666135112,30.0,11.152,11.146,22.83]
[1672666135843,30.0,11.15,11.146,22.83]
[1672666136162,30.0,11.15,11.145,24.9262]
[1672666136566,67.35,11.151,11.145,24.9262]
[1672666138477,97.35,11.152,11.145,24.9262]
[1672666146769,67.35,11.152,11.145,24.9262]
[1672666146978,142.3076,11.154,11.145,24.9262]
[1672666147188,209.6376,11.154,11.145,47.5627]
[1672666148044,30.0,11.153,11.145,47.5627]
[1672666148567,209.6376,11.154,11.145,47.5627]
[1672666148993,142.3076,11.154,11.145,63.37000786]
[1672666149728,142.3076,11.154,11.146,30.0]
[1672666149924,142.3076,11.154,11.147,30.0]
[1672666150134,142.3076,11.154,11.147,45.80730786]
[1672666151303,142.3076,11.154,11.147,15.80730786]
[1672666151925,142.3076,11.154,11.146,52.6365]
[1672666152125,142.3076,11.154,11.147,17.0]
[1672666152335,142.3076,11.154,11.147,47.0]
[1672666160024,142.3076,11.154,11.147,17.0]
[1672666160234,142.3076,11.154,11.147,32.80730786]
[1672666160447,142.3076,11.154,11.148,30.0]
[1672666160655,142.3076,11.154,11.149,17.0]
[1672666161367,24.3782,11.154,11.148,17.0]
[1672666165053,24.3782,11.154,11.148,32.80730786]
[1672666165390,24.3782,11.154,11.149,30.0]
[1672666165586,24.3782,11.154,11.15,17.0]
[1672666165801,22.7663,11.155,11.15,17.0]
[1672666166426,22.7663,11.155,11.147,22.8383]
[1672666166632,22.7663,11.155,11.148,30.0]
[1672666167161,22.7663,11.155,11.147,22.8383]
[1672666167795,22.7663,11.155,11.149,30.0]
[1672666168002,22.7663,11.155,11.148,17.0]
[1672666169778,22.7663,11.155,11.149,30.0]
[1672666170325,22.7663,11.155,11.148,47.0]
[1672666171562,22.7663,11.155,11.148,17.0]
[1672666174524,22.7663,11.155,11.147,22.8383]
[1672666178312,52.7663,11.155,11.147,22.8383]
[1672666178830,22.7663,11.155,11.147,22.8383]
[1672666192288,90.0963,11.155,11.147,22.8383]
[1672666192502,30.0,11.154,11.147,22.8383]
[1672666194925,90.0963,11.155,11.147,22.8383]
[1672666197551,90.0963,11.155,11.148,30.0]
[1672666197759,22.7663,11.155,11.148,30.0]
[1672666198382,22.7663,11.155,11.147,52.8383]
[1672666198592,22.7663,11.155,11.148,17.0]
[1672666199033,22.7663,11.155,11.147,22.8383]
[1672666199213,52.7663,11.155,11.147,22.8383]
[1672666199767,17.0,11.154,11.147,22.8383]
[1672666202608,90.0963,11.155,11.147,22.8383]
[1672666202795,22.7663,11.155,11.149,30.0]
[1672666203005,22.7663,11.155,11.148,30.0]
[1672666203329,22.7663,11.155,11.149,17.0]
[1672666203534,22.7663,11.155,11.148,30.0]
[1672666203748,22.7663,11.155,11.149,17.0]
[1672666203955,22.7663,11.155,11.148,30.0]
[1672666205849,22.7663,11.155,11.149,17.0]
[1672666207231,22.7663,11.155,11.148,17.0]
[1672666207431,22.7663,11.155,11.149,30.0]
[1672666207645,22.7663,11.155,11.15,17.0]
[1672666208375,22.7663,11.155,11.149,17.0]
[1672666210601,22.7663,11.155,11.148,47.0]
[1672666210811,22.7663,11.155,11.148,17.0]
[1672666212279,22.7663,11.155,11.147,22.8383]
[1672666213737,22.7663,11.155,11.148,17.0]
[1672666226256,22.7663,11.155,11.147,22.8383]
[1672666226681,90.0963,11.155,11.147,22.8383]
[1672666226890,22.7663,11.155,11.147,22.8383]
[1672666228047,90.0963,11.155,11.147,22.8383]
[1672666241744,30.0,11.154,11.147,22.8383]
[1672666241961,30.0,11.152,11.147,22.8383]
[1672666242158,30.0,11.15,11.146,1366.38650138]
[1672666242374,87.37,11.149,11.147,1123.39531644]
[1672666244486,20.0,11.149,11.147,1123.39531644]
[1672666250810,20.0,11.149,11.148,613.07025017]
[1672666253654,20.0,11.149,11.138,91.5484]
[1672666253655,115.89971199,11.149,11.138,91.5484]
[1672666253844,115.89971199,11.149,11.14,30.0]
[1672666254055,115.89971199,11.149,11.14,67.42]
[1672666255863,115.89971199,11.149,11.139,84.43]
[1672666256072,44.7103,11.149,11.14,30.0]
[1672666256378,44.7103,11.149,11.142,30.0]
[1672666256593,44.7103,11.149,11.141,67.41]
[1672666256780,44.7103,11.149,11.14,30.0]
[1672666256991,44.7103,11.149,11.139,67.43]
[1672666258275,112.0803,11.149,11.139,67.43]
[1672666258597,74.7103,11.149,11.139,67.43]
[1672666260373,44.7103,11.149,11.139,67.43]
[1672666260800,142.0803,11.149,11.138,91.5484]
[1672666260994,112.0803,11.149,11.138,91.5484]
[1672666261427,230.7662,11.149,11.138,91.5484]
[1672666262050,30.0,11.148,11.138,24.1184]
[1672666262244,67.38,11.147,11.138,24.1184]
[1672666262460,30.0,11.146,11.138,24.1184]
[1672666264373,92.315,11.147,11.138,24.1184]
[1672666264588,30.0,11.146,11.138,24.1184]
[1672666265636,92.315,11.147,11.138,24.1184]
[1672666266139,92.315,11.147,11.138,91.5484]
[1672666266350,30.0,11.146,11.138,24.1184]
[1672666270882,67.39,11.145,11.138,24.1184]
[1672666271096,30.0,11.144,11.138,24.1184]
[1672666271495,23.1151,11.146,11.138,24.1184]
[1672666271708,23.1151,11.146,11.138,91.5484]
[1672666272148,23.1151,11.146,11.138,24.1184]
[1672666272985,17.0,11.145,11.138,24.1184]
[1672666274676,23.1151,11.146,11.139,30.0]
[1672666275198,23.1151,11.146,11.139,97.43]
[1672666275506,23.1151,11.146,11.139,67.43]
[1672666276137,23.1151,11.146,11.14,30.0]
[1672666276458,23.1151,11.146,11.139,67.43]
[1672666278134,23.1151,11.146,11.138,91.5484]
[1672666280864,23.1151,11.146,11.138,24.1184]
[1672666281063,90.4951,11.146,11.138,24.1184]
[1672666281803,23.1151,11.146,11.138,24.1184]
[1672666284024,30.0,11.144,11.138,24.1184]
[1672666286645,30.0,11.145,11.138,24.1184]
[1672666287907,30.0,11.143,11.138,24.1184]
[1672666289272,97.39,11.145,11.138,24.1184]
[1672666291696,67.39,11.145,11.138,24.1184]
[1672666292097,30.0,11.144,11.138,24.1184]
[1672666292311,67.4,11.143,11.138,24.02368141]
[1672666292524,30.0,11.142,11.138,24.02368141]
[1672666292755,67.4,11.143,11.138,24.02368141]
[1672666293676,30.0,11.144,11.138,24.02368141]
[1672666293906,67.4,11.143,11.138,24.02368141]
[1672666294851,67.39,11.145,11.138,24.02368141]
[1672666295485,30.0,11.144,11.138,24.02368141]
[1672666295690,67.4,11.143,11.138,24.02368141]
[1672666296628,30.0,11.142,11.138,24.02368141]
[1672666297049,30.0,11.142,11.137,24.2152]
[1672666298427,17.0,11.141,11.137,24.2152]
[1672666298824,17.0,11.141,11.135,24.7595]
[1672666307239,67.4,11.144,11.135,24.7595]
[1672666307449,30.0,11.144,11.135,24.7595]
[1672666307992,67.39,11.145,11.135,24.7595]
[1672666308307,90.4951,11.146,11.136,30.0]
[1672666308503,90.4951,11.146,11.136,83.8437]
[1672666310414,90.4951,11.146,11.136,53.8437]
[1672666310620,30.0,11.145,11.136,53.8437]
[1672666310815,17.0,11.144,11.136,53.8437]
[1672666311771,90.4951,11.146,11.136,53.8437]
[1672666316177,90.4951,11.146,11.137,30.0]
[1672666316378,23.1151,11.146,11.138,67.43]
[1672666316584,23.1151,11.146,11.137,120.5582]
[1672666318500,23.1151,11.146,11.137,90.5582]
[1672666321759,23.1151,11.146,11.137,23.1182]
[1672666321974,90.4951,11.146,11.137,23.1182]
[1672666323745,30.0,11.145,11.137,23.1182]
[1672666324067,30.0,11.143,11.137,23.1182]
[1672666326704,67.4,11.144,11.137,23.1182]
[1672666327539,97.39,11.145,11.137,23.1182]
[1672666328588,67.39,11.145,11.137,23.1182]
[1672666329315,90.4951,11.146,11.137,23.1182]
[1672666339506,90.4951,11.146,11.138,17.0]
[1672666339731,90.4951,11.146,11.137,23.1182]
[1672666340459,90.4951,11.146,11.138,30.0]
[1672666342562,23.1151,11.146,11.139,17.0]
[1672666342772,23.1151,11.146,11.138,30.0]
[1672666343608,23.1151,11.146,11.139,30.0]
[1672666343823,23.1151,11.146,11.14,17.0]
[1672666345606,23.1151,11.146,11.14,47.0]
[1672666347415,23.1151,11.146,11.14,17.0]
[1672666350453,23.1151,11.146,11.14,47.0]
[1672666355396,23.1151,11.146,11.14,30.0]
[1672666356758,23.1151,11.146,11.139,30.0]
[1672666359178,23.1151,11.146,11.138,24.2436]
[1672666359582,23.1151,11.146,11.139,17.0]
[1672666363702,23.1151,11.146,11.14,30.0]
[1672666364654,23.1151,11.146,11.139,84.43]
[1672666364837,23.1151,11.146,11.139,17.0]
[1672666365262,23.1151,11.146,11.138,91.6736]
[1672666365492,23.1151,11.146,11.139,30.0]
[1672666373366,23.1151,11.146,11.138,24.2436]
[1672666375281,90.4951,11.146,11.138,24.2436]
[1672666383562,90.4951,11.146,11.139,30.0]
[1672666384099,23.1151,11.146,11.139,30.0]
[1672666384836,23.1151,11.146,11.138,54.2436]
[1672666386423,23.1151,11.146,11.138,24.2436]
[1672666392306,30.0,11.144,11.138,24.2436]
[1672666393058,67.39,11.145,11.138,24.2436]
[1672666398312,30.0,11.144,11.138,24.2436]
[1672666399678,30.0,11.142,11.138,24.2436]
[1672666399877,30.0,11.142,11.137,22.5592]
[1672666400725,67.41,11.141,11.127,67.5]
[1672666400922,26.86,11.14,11.129,30.0]
[1672666401136,67.43,11.139,11.129,30.0]
[1672666401347,20.0,11.138,11.129,30.0]
[1672666401558,67.44,11.137,11.129,30.0]
[1672666401767,30.0,11.136,11.129,30.0]
[1672666401988,67.45,11.135,11.127,23.5538]
[1672666402714,30.0,11.134,11.127,23.5538]
[1672666402928,67.46,11.133,11.127,23.5538]
[1672666404081,30.0,11.132,11.127,23.5538]
[1672666411008,67.46,11.133,11.127,23.5538]
[1672666411550,67.46,11.134,11.127,23.5538]
[1672666413755,30.0,11.133,11.127,23.5538]
[1672666415636,67.46,11.134,11.127,23.5538]
[1672666417844,30.0,11.133,11.127,23.5538]
[1672666424058,30.0,11.131,11.127,23.5538]
[1672666424286,30.0,11.131,11.126,22.9439]
[1672666426815,67.47,11.132,11.126,22.9439]
[1672666430177,30.0,11.131,11.126,22.9439]
[1672666436699,110.77040699,11.131,11.126,22.9439]
[1672666436907,67.48,11.13,11.119,24.5973]
[1672666437227,30.0,11.128,11.119,24.5973]
[1672666437424,67.5,11.127,11.119,24.5973]
[1672666437641,30.0,11.126,11.119,24.5973]
[1672666438997,67.5,11.127,11.119,24.5973]
[1672666439516,97.5,11.127,11.119,24.5973]
[1672666441949,30.0,11.126,11.119,24.5973]
[1672666442566,30.0,11.124,11.119,24.5973]
[1672666442988,97.5,11.126,11.119,24.5973]
[1672666443720,97.5,11.126,11.119,24.5215193]
[1672666444139,121.0534,11.127,11.119,24.5215193]
[1672666445415,17.0,11.126,11.119,24.5215193]
[1672666446349,47.0,11.126,11.119,24.5215193]
[1672666446666,17.0,11.126,11.119,24.5215193]
[1672666451713,84.5,11.126,11.119,24.5215193]
[1672666452131,17.0,11.126,11.119,24.5215193]
[1672666452761,30.0,11.124,11.119,24.5215193]
[1672666453520,67.51,11.125,11.119,24.5215193]
[1672666454349,67.5,11.126,11.119,24.5215193]
[1672666454567,30.0,11.125,11.119,24.5215193]
[1672666456138,67.5,11.126,11.119,24.5215193]
[1672666458026,30.0,11.125,11.119,24.5215193]
[1672666458360,67.52,11.124,11.119,24.5215193]
[1672666458668,30.0,11.125,11.119,24.5215193]
[1672666460439,17.0,11.124,11.119,24.5215193]
[1672666460650,84.52,11.124,11.119,24.5215193]
[1672666461930,17.0,11.124,11.119,24.5215193]
[1672666464364,84.52,11.124,11.119,24.5215193]
[1672666464581,17.0,11.124,11.119,24.5215193]
[1672666471188,67.52,11.123,11.119,24.5215193]
[1672666471523,30.0,11.122,11.119,24.5215193]
[1672666471730,30.0,11.122,11.118,23.6692]
[1672666471939,30.0,11.122,11.114,23.9726]
[1672666472150,30.0,11.122,11.112,30.0]
[1672666472460,30.0,11.122,11.113,67.58]
[1672666472859,30.0,11.122,11.113,90.3633]
[1672666474239,20.0,11.121,11.112,24.8645]
[1672666474446,67.54,11.12,11.112,24.8645]
[1672666474649,30.0,11.119,11.112,24.8645]